bitfinex/quotes_BTCUSD_20240921
["timestamp","ask_amount","ask_price","bid_price","bid_amount"]
[1726919632340,0.001985,63187.0,63186.0,1.12707337]
[1726919635412,0.003985,63187.0,63186.0,1.12707337]
[1726919635635,0.005985,63187.0,63186.0,1.12707337]
[1726919635852,0.001985,63187.0,63186.0,1.12707337]
[1726919636075,0.003985,63187.0,63186.0,1.12707337]
[1726919636274,0.005985,63187.0,63186.0,1.12707337]
[1726919641135,0.003985,63187.0,63186.0,1.12707337]
[1726919642111,0.001985,63187.0,63186.0,1.12707337]
[1726919642338,0.003985,63187.0,63186.0,1.12707337]
[1726919642998,0.002985,63187.0,63186.0,1.12707337]
[1726919643441,0.003985,63187.0,63186.0,1.12707337]
[1726919646628,0.12208038,63196.0,63195.0,0.47472]
[1726919647085,0.12208038,63196.0,63195.0,0.49398825]
[1726919648423,0.12908038,63196.0,63195.0,0.49498825]
[1726919649561,0.13408038,63196.0,63195.0,0.49598825]
[1726919651119,0.13490538,63196.0,63195.0,0.49598825]
[1726919652022,0.20083109,63196.0,63195.0,0.49598825]
[1726919652247,0.20083109,63196.0,63195.0,0.81246825]
[1726919653174,0.13490538,63196.0,63195.0,0.81246825]
[1726919673451,0.13490538,63196.0,63195.0,0.81411825]
[1726919674395,0.0134257,63196.0,63195.0,0.81411825]
[1726919684637,0.0134257,63196.0,63195.0,0.91351825]
[1726919688945,0.0134257,63196.0,63195.0,1.22999825]
[1726919694078,0.0064257,63196.0,63195.0,1.22899825]
[1726919694550,0.0064257,63196.0,63195.0,1.22999825]
[1726919694551,0.0134257,63196.0,63195.0,1.22999825]
[1726919695498,0.0084257,63196.0,63195.0,1.22899825]
[1726919695698,0.0134257,63196.0,63195.0,1.22999825]
[1726919706844,0.04840398,63196.0,63195.0,0.91351825]
[1726919707053,0.04840398,63196.0,63195.0,0.81411825]
[1726919713204,0.04840398,63196.0,63195.0,0.49763825]
[1726919713420,0.0134257,63196.0,63195.0,0.90871825]
[1726919715004,0.0134257,63196.0,63195.0,0.59223825]
[1726919726845,0.0134257,63196.0,63195.0,0.90871825]
[1726919736793,0.13490538,63196.0,63195.0,0.59223825]
[1726919737933,0.13490538,63196.0,63195.0,0.90871825]
[1726919741853,0.52748868,63196.0,63195.0,0.02291825]
[1726919742082,1.54968554,63196.0,63195.0,0.02291825]
[1726919742304,1.57344975,63196.0,63195.0,0.00365]
[1726919742538,1.57341632,63196.0,63195.0,0.00365]
[1726919742987,1.7365019,63196.0,63195.0,0.00365]
[1726919743701,1.8341019,63196.0,63195.0,0.00365]
[1726919743926,2.1455769,63196.0,63195.0,0.00265]
[1726919744188,2.9388769,63196.0,63195.0,0.00165]
[1726919744454,0.474795,63185.0,63184.0,0.00165]
[1726919744697,0.44279835,63185.0,63184.0,0.00165]
[1726919744920,0.44279835,63185.0,63184.0,0.0251234]
[1726919744921,0.51402756,63185.0,63184.0,0.0251234]
[1726919745139,0.51402756,63185.0,63184.0,0.00165]
[1726919745357,0.99364594,63185.0,63184.0,0.00165]
[1726919745650,0.60588393,63185.0,63184.0,0.00165]
[1726919745897,0.61188393,63185.0,63184.0,0.00265]
[1726919747538,0.93541393,63185.0,63184.0,0.00365]
[1726919747770,1.24594393,63185.0,63184.0,0.00265]
[1726919748010,1.28639158,63185.0,63184.0,0.00165]
[1726919748249,1.99839158,63185.0,63184.0,0.00265]
[1726919748473,1.95294393,63185.0,63184.0,0.00265]
[1726919748697,1.96694393,63185.0,63184.0,0.00365]
[1726919750758,1.26694393,63185.0,63184.0,0.00365]
[1726919753126,1.58022766,63185.0,63184.0,0.00365]
[1726919753538,2.28022766,63185.0,63184.0,0.00365]
[1726919755616,1.58022766,63185.0,63184.0,0.00365]
[1726919761708,1.45874798,63185.0,63184.0,0.00365]
[1726919762007,0.6626024,63185.0,63184.0,0.00365]
[1726919762185,0.78408208,63185.0,63184.0,0.00365]
[1726919762408,0.78408208,63185.0,63184.0,0.02375789]
[1726919762409,1.10061208,63185.0,63184.0,0.02375789]
[1726919762632,1.10061208,63185.0,63184.0,0.00365]
[1726919770010,0.9791324,63185.0,63184.0,0.00365]
[1726919770203,1.14221798,63185.0,63184.0,0.00365]
[1726919770408,1.26369766,63185.0,63184.0,0.00365]
[1726919772091,1.10061208,63185.0,63184.0,0.00365]
[1726919773491,0.9791324,63185.0,63184.0,0.00365]
[1726919773722,0.5043374,63185.0,63184.0,0.257317]
[1726919773947,0.19105367,63185.0,63184.0,0.257317]
[1726919774208,0.42911562,63185.0,63184.0,0.27746886]
[1726919775077,0.41511562,63185.0,63184.0,0.27646886]
[1726919775296,0.42811562,63185.0,63184.0,0.27746886]
[1726919775532,0.42811562,63185.0,63184.0,0.59400386]
[1726919775763,0.29753335,63185.0,63184.0,0.59300386]
[1726919776263,0.31053335,63185.0,63184.0,0.59400386]
[1726919776707,0.026,63185.0,63184.0,0.91053886]
[1726919776948,0.026,63185.0,63184.0,1.22707386]
[1726919777184,0.026,63185.0,63184.0,0.91053886]
[1726919781095,0.026,63185.0,63184.0,1.22707386]
[1726919782011,0.013,63185.0,63184.0,1.22607386]
[1726919782231,0.12147968,63191.0,63190.0,0.566857]
[1726919782711,0.17812691,63191.0,63190.0,0.58702761]
[1726919783633,0.17812691,63191.0,63190.0,0.58802761]
[1726919783634,0.18712691,63191.0,63190.0,0.58802761]
[1726919784602,0.13047968,63191.0,63190.0,0.58802761]
[1726919784835,0.44376341,63191.0,63190.0,0.58802761]
[1726919785294,0.45276341,63191.0,63190.0,0.58902761]
[1726919797993,0.13947968,63191.0,63190.0,0.58902761]
[1726919799931,0.13947968,63191.0,63190.0,0.27252261]
[1726919801364,0.13947968,63191.0,63190.0,0.58902761]
[1726919802226,0.13947968,63191.0,63190.0,0.59067761]
[1726919804716,0.13602528,63191.0,63190.0,0.59067761]
[1726919804920,0.018,63191.0,63190.0,0.59067761]
[1726919805144,0.45276341,63191.0,63190.0,0.59067761]
[1726919806712,0.45276341,63191.0,63190.0,0.90718261]
[1726919806935,0.018,63191.0,63190.0,0.90718261]
[1726919808945,0.13947968,63191.0,63190.0,0.90718261]
[1726919810054,0.13947968,63191.0,63190.0,0.59067761]
[1726919812288,0.45276341,63191.0,63190.0,0.59067761]
[1726919813529,0.45358841,63191.0,63190.0,0.59067761]
[1726919815440,0.45358841,63191.0,63190.0,0.90718261]
[1726919815641,0.45358841,63191.0,63190.0,0.59067761]
[1726919819413,0.14030468,63191.0,63190.0,0.90718261]
[1726919820621,0.14030468,63191.0,63190.0,0.59067761]
[1726919823038,0.14030468,63191.0,63190.0,0.90718261]
[1726919823268,0.14030468,63191.0,63190.0,0.59067761]
[1726919823904,0.14030468,63191.0,63190.0,0.90718261]
[1726919829997,0.14030468,63191.0,63190.0,0.59067761]
[1726919830452,0.14030468,63191.0,63190.0,0.90718261]
[1726919831355,0.18779536,63191.0,63190.0,0.59067761]
[1726919831711,0.18779536,63191.0,63190.0,0.90718261]
[1726919832571,0.18779536,63191.0,63190.0,0.59067761]
[1726919832795,0.18779536,63191.0,63190.0,0.90718261]
[1726919832982,0.14030468,63191.0,63190.0,0.90718261]
[1726919833438,0.18779536,63191.0,63190.0,0.90718261]
[1726919833684,0.18783284,63191.0,63190.0,0.59067761]
[1726919833903,0.18783284,63191.0,63190.0,0.11592061]
[1726919834185,0.18783284,63191.0,63190.0,0.49857761]
[1726919838511,0.1878336,63191.0,63190.0,0.49857761]
[1726919841211,0.14030468,63191.0,63190.0,0.49857761]
[1726919841426,0.21159909,63191.0,63190.0,0.49857761]
[1726919843502,0.32666611,63191.0,63190.0,0.49857761]
[1726919843950,0.14030468,63191.0,63190.0,0.49857761]
[1726919844877,0.23536253,63191.0,63190.0,0.49857761]
[1726919845175,0.14030468,63191.0,63190.0,0.49857761]
[1726919845665,0.32662267,63191.0,63190.0,0.49857761]
[1726919845891,0.14030468,63191.0,63190.0,0.49857761]
[1726919847465,0.32658823,63191.0,63190.0,0.49857761]
[1726919847676,0.14030468,63191.0,63190.0,0.49857761]
[1726919847890,0.21158778,63191.0,63190.0,0.49857761]
[1726919848107,0.21158808,63191.0,63190.0,0.49857761]
[1726919848337,0.0901084,63191.0,63190.0,0.49857761]
[1726919848566,0.21158808,63191.0,63190.0,0.49857761]
[1726919849008,0.21158812,63191.0,63190.0,0.49857761]
[1726919853154,0.14030468,63191.0,63190.0,0.49857761]
[1726919854293,0.21158237,63191.0,63190.0,0.49857761]
[1726919855799,0.2115812,63191.0,63190.0,0.49857761]
[1726919856066,0.21158212,63191.0,63190.0,0.49857761]
[1726919857750,0.14030468,63191.0,63190.0,0.49857761]
[1726919860689,0.23533897,63191.0,63190.0,0.49857761]
[1726919860916,0.42160331,63191.0,63190.0,0.49857761]
[1726919861168,0.32656902,63191.0,63190.0,0.49857761]
[1726919861896,0.32656902,63191.0,63190.0,0.18207261]
[1726919862127,0.32656902,63191.0,63190.0,0.49857761]
[1726919862577,0.21157267,63191.0,63190.0,0.49857761]
[1726919862829,0.32659815,63191.0,63190.0,0.49857761]
[1726919863293,0.14030468,63191.0,63190.0,0.49857761]
[1726919863528,0.21157248,63191.0,63190.0,0.49857761]
[1726919865114,0.14030468,63191.0,63190.0,0.49857761]
[1726919865318,0.21157214,63191.0,63190.0,0.49857761]
[1726919865890,0.32660429,63191.0,63190.0,0.49857761]
[1726919867490,0.21156975,63191.0,63190.0,0.49857761]
[1726919869762,0.21156975,63191.0,63190.0,0.18207261]
[1726919870510,0.14030468,63191.0,63190.0,0.18207261]
[1726919870741,0.21157151,63191.0,63190.0,0.18207261]
[1726919871177,0.14030468,63191.0,63190.0,0.18207261]
[1726919871625,0.21157241,63191.0,63190.0,0.18207261]
[1726919872843,0.14030468,63191.0,63190.0,0.18207261]
[1726919873308,0.21157304,63191.0,63190.0,0.18207261]
[1726919874421,0.21157504,63191.0,63190.0,0.18207261]
[1726919874641,0.14030468,63191.0,63190.0,0.18207261]
[1726919874868,0.21157551,63191.0,63190.0,0.18207261]
[1726919875557,0.14030468,63191.0,63190.0,0.18207261]
[1726919875772,0.21157697,63191.0,63190.0,0.18207261]
[1726919875971,0.09009729,63191.0,63190.0,0.18207261]
[1726919877726,0.09010052,63191.0,63190.0,0.18207261]
[1726919878228,0.09010052,63191.0,63190.0,0.49857761]
[1726919880376,0.09010565,63191.0,63190.0,0.49857761]
[1726919881704,0.09010565,63191.0,63190.0,0.81508261]
[1726919881923,0.09010565,63191.0,63190.0,0.91098261]
[1726919881924,0.018825,63191.0,63190.0,0.91098261]
[1726919882370,0.018825,63191.0,63190.0,0.59447761]
[1726919885742,0.09010951,63191.0,63190.0,0.59447761]
[1726919886174,0.21158919,63191.0,63190.0,0.59447761]
[1726919887069,0.14030468,63191.0,63190.0,0.59447761]
[1726919887721,0.32812019,63191.0,63190.0,0.59447761]
[1726919888376,0.21159436,63191.0,63190.0,0.59447761]
[1726919888599,0.14030468,63191.0,63190.0,0.59447761]
[1726919888811,0.21159389,63191.0,63190.0,0.59447761]
[1726919889024,0.14030468,63191.0,63190.0,0.59447761]
[1726919889250,0.018825,63191.0,63190.0,0.59447761]
[1726919889478,0.14030468,63191.0,63190.0,0.59447761]
[1726919890177,0.21159432,63191.0,63190.0,0.59447761]
[1726919890407,0.14030468,63191.0,63190.0,0.59447761]
[1726919890878,0.21159425,63191.0,63190.0,0.27797261]
[1726919891123,0.14030468,63191.0,63190.0,0.18207261]
[1726919891340,0.42316353,63191.0,63190.0,0.18207261]
[1726919892927,0.42316353,63191.0,63190.0,0.49857761]
[1726919893199,0.32811751,63191.0,63190.0,0.49857761]
[1726919893423,0.84642095,63191.0,63190.0,0.02382061]
[1726919893919,0.75137493,63191.0,63190.0,0.02382061]
[1726919894378,0.59312493,63191.0,63190.0,0.02382061]
[1726919894766,0.59316127,63191.0,63190.0,0.02382061]
[1726919896009,0.75141127,63191.0,63190.0,0.02382061]
[1726919896615,0.59316127,63191.0,63190.0,0.02382061]
[1726919899499,0.68825709,63191.0,63190.0,0.02382061]
[1726919899945,0.59320537,63191.0,63190.0,0.02382061]
[1726919900844,0.68825723,63191.0,63190.0,0.02382061]
[1726919901067,0.59320537,63191.0,63190.0,0.02382061]
[1726919907170,0.68825588,63191.0,63190.0,0.02382061]
[1726919907406,0.68825588,63191.0,63190.0,0.18207261]
[1726919907623,0.59320537,63191.0,63190.0,0.18207261]
[1726919908507,0.59320537,63191.0,63190.0,0.02382061]
[1726919908955,0.75145537,63191.0,63190.0,0.02382061]
[1726919909182,0.59320537,63191.0,63190.0,0.02382061]
[1726919909414,0.5931629,63191.0,63190.0,0.02382061]
[1726919912701,0.7514129,63191.0,63190.0,0.02382061]
[1726919913614,1.0679129,63191.0,63190.0,0.02382061]
[1726919913832,0.7514129,63191.0,63190.0,0.02382061]
[1726919915365,0.64951912,63191.0,63190.0,0.02382061]
[1726919915809,0.96601912,63191.0,63190.0,0.02382061]
[1726919916076,0.96601912,63191.0,63190.0,0.00365]
[1726919916289,0.96601912,63191.0,63190.0,0.02111563]
[1726919917867,0.96601912,63191.0,63190.0,0.00365]
[1726919918543,0.96601912,63191.0,63190.0,0.02111563]
[1726919918752,0.96601912,63191.0,63190.0,0.00365]
[1726919918969,0.96601912,63191.0,63190.0,0.02111563]
[1726919919182,0.96601912,63191.0,63190.0,0.00365]
[1726919919401,0.96601912,63191.0,63190.0,0.02111563]
[1726919919638,0.96601912,63191.0,63190.0,0.00365]
[1726919920298,0.96601912,63191.0,63190.0,0.02111563]
[1726919925637,0.64951912,63191.0,63190.0,0.02111563]
[1726919930761,0.7683322,63191.0,63190.0,0.02111563]
[1726919938593,0.46160835,63191.0,63190.0,0.02111563]
[1726919938870,0.76858761,63191.0,63190.0,0.02111563]
[1726919940456,0.61033761,63191.0,63190.0,0.02111563]
[1726919940891,0.61032247,63191.0,63190.0,0.02111563]
[1726919941122,0.49147323,63191.0,63190.0,0.02111563]
[1726919941366,0.61032262,63191.0,63190.0,0.02720297]
[1726919941602,0.61032349,63191.0,63190.0,0.00365]
[1726919941844,0.61032349,63191.0,63190.0,0.02720243]
[1726919942087,0.61032349,63191.0,63190.0,0.00365]
[1726919942318,0.76857349,63191.0,63190.0,0.02720243]
[1726919943643,0.64972323,63191.0,63190.0,0.02720243]
[1726919943868,0.76857111,63191.0,63190.0,0.02720243]
[1726919944567,0.61032111,63191.0,63190.0,0.02720243]
[1726919945027,0.49147323,63191.0,63190.0,0.02720243]
[1726919945265,0.61032111,63191.0,63190.0,0.02720243]
[1726919946378,0.49147323,63191.0,63190.0,0.02720243]
[1726919946598,0.61032111,63191.0,63190.0,0.02720243]
[1726919946814,0.61049085,63191.0,63190.0,0.02720243]
[1726919948405,0.76874085,63191.0,63190.0,0.02720243]
[1726919948640,0.64989259,63191.0,63190.0,0.02720243]
[1726919948861,0.76874295,63191.0,63190.0,0.02720243]
[1726919949104,0.64989259,63191.0,63190.0,0.02720243]
[1726919951676,0.76874295,63191.0,63190.0,0.02720243]
[1726919952476,0.64989259,63191.0,63190.0,0.02720243]
[1726919953574,0.76874295,63191.0,63190.0,0.02720243]
[1726919955064,0.76873576,63191.0,63190.0,0.02720243]
[1726919955282,0.64989259,63191.0,63190.0,0.02720243]
[1726919955530,0.76873553,63191.0,63190.0,0.02720243]
[1726919955792,0.75973716,63191.0,63190.0,0.02620243]
[1726919956022,0.7597366,63191.0,63190.0,0.02620243]
[1726919956221,0.7647366,63191.0,63190.0,0.02620243]
[1726919956477,0.64447387,63191.0,63190.0,0.02620243]
[1726919956704,0.77531828,63191.0,63190.0,0.02720243]
[1726919957430,0.65647387,63191.0,63190.0,0.02720243]
[1726919957670,0.64247387,63191.0,63190.0,0.02620243]
[1726919957899,0.65547387,63191.0,63190.0,0.02720243]
[1726919958821,0.77431828,63191.0,63190.0,0.02720243]
[1726919959507,0.65547387,63191.0,63190.0,0.02720243]
[1726919960011,0.77431828,63191.0,63190.0,0.02128001]
[1726919960700,0.65547387,63191.0,63190.0,0.02128001]
[1726919961432,0.77431512,63191.0,63190.0,0.02128001]
[1726919961654,0.65547387,63191.0,63190.0,0.02128001]
[1726919962104,0.97197387,63191.0,63190.0,0.02128001]
[1726919962572,1.09081837,63191.0,63190.0,0.00365]
[1726919962795,1.09081837,63191.0,63190.0,0.02127937]
[1726919963012,1.09081837,63191.0,63190.0,0.00365]
[1726919963228,1.09081837,63191.0,63190.0,0.02127912]
[1726919963229,1.09081644,63191.0,63190.0,0.02127912]
[1726919963464,1.09081644,63191.0,63190.0,0.00365]
[1726919963714,1.09081617,63191.0,63190.0,0.02127909]
[1726919963931,0.97197387,63191.0,63190.0,0.00365]
[1726919964155,1.09081622,63191.0,63190.0,0.00365]
[1726919964389,1.09081505,63191.0,63190.0,0.02127909]
[1726919964596,1.09081505,63191.0,63190.0,0.00365]
[1726919964819,1.09081505,63191.0,63190.0,0.02127909]
[1726919965036,1.09081505,63191.0,63190.0,0.00365]
[1726919965244,1.09081505,63191.0,63190.0,0.02127909]
[1726919965461,1.09081505,63191.0,63190.0,0.00365]
[1726919965632,1.09081381,63191.0,63190.0,0.00365]
[1726919965845,1.09081381,63191.0,63190.0,0.02127909]
[1726919966062,1.09081381,63191.0,63190.0,0.00365]
[1726919966264,1.09081381,63191.0,63190.0,0.02127909]
[1726919966265,0.97201617,63191.0,63190.0,0.02127909]
[1726919966488,0.97201617,63191.0,63190.0,0.00365]
[1726919966693,0.96937837,63191.0,63190.0,0.021279]
[1726919966897,1.09085805,63191.0,63190.0,0.00365]
[1726919967101,1.09085805,63191.0,63190.0,0.021279]
[1726919967298,0.97201617,63191.0,63190.0,0.00365]
[1726919967503,1.09085805,63191.0,63190.0,0.02127958]
[1726919967759,1.09085805,63191.0,63190.0,0.02421905]
[1726919968606,0.97201617,63191.0,63190.0,0.02421905]
[1726919971008,0.97196022,63191.0,63190.0,0.02421905]
[1726919975006,1.09079125,63191.0,63190.0,0.02421905]
[1726919975452,0.97196022,63191.0,63190.0,0.00365]
[1726919975673,1.09079249,63191.0,63190.0,0.00365]
[1726919976239,0.97196022,63191.0,63190.0,0.00365]
[1726919980217,0.97068506,63191.0,63190.0,0.00365]
[1726919980647,0.97068506,63191.0,63190.0,0.02129861]
[1726919980843,0.97068506,63191.0,63190.0,0.00365]
[1726919981263,1.08951116,63191.0,63190.0,0.00365]
[1726919981474,1.08951077,63191.0,63190.0,0.00365]
[1726919983377,0.96803109,63191.0,63190.0,0.00365]
[1726919985490,0.84920538,63191.0,63190.0,0.00365]
[1726919985690,0.84919196,63191.0,63190.0,0.00365]
[1726919986550,0.96801392,63191.0,63190.0,0.00365]
[1726919988820,0.84919196,63191.0,63190.0,0.00365]
[1726919989253,1.08949146,63191.0,63190.0,0.00365]
[1726919990524,0.97096875,63191.0,63190.0,0.00365]
[1726919991164,1.08978459,63191.0,63190.0,0.00365]
[1726919994849,0.97096875,63191.0,63190.0,0.00365]
[1726919995211,1.08978459,63191.0,63190.0,0.00365]
[1726919995860,1.08978459,63191.0,63190.0,0.02131399]
[1726919996065,1.08978459,63191.0,63190.0,0.00365]
[1726919996499,1.08978459,63191.0,63190.0,0.02131399]
[1726919996741,1.08978459,63191.0,63190.0,0.02134945]
[1726919996948,0.49355491,63191.0,63190.0,0.11954945]
[1726919997362,0.49352054,63191.0,63190.0,0.11954945]
[1726920000248,0.49309149,63191.0,63190.0,0.11954945]
[1726920001036,0.49309158,63191.0,63190.0,0.11954945]
[1726920003082,0.37426154,63191.0,63190.0,0.27780145]
[1726920005861,0.37426154,63191.0,63190.0,0.59430645]
[1726920006081,0.30627078,63191.0,63190.0,0.91081145]
[1726920006308,0.025445,63191.0,63190.0,0.91081145]
[1726920013630,0.025445,63191.0,63190.0,0.98995145]
[1726920014811,0.025445,63191.0,63190.0,1.30645645]
[1726920015612,0.012445,63191.0,63190.0,1.30545645]
[1726920016108,0.016445,63191.0,63190.0,1.30545645]
[1726920016353,0.004445,63191.0,63190.0,1.30445645]
[1726920016848,0.008445,63191.0,63190.0,1.30445645]
[1726920029470,0.008445,63191.0,63190.0,0.98795145]
[1726920030324,0.12230468,63195.0,63190.0,0.98795145]
[1726920030325,0.12230468,63195.0,63194.0,0.158242]
[1726920030748,0.12230468,63195.0,63194.0,0.1766368]
[1726920031402,0.12230468,63195.0,63194.0,0.4931218]
[1726920031833,0.12230468,63195.0,63194.0,0.1766368]
[1726920032041,0.13030468,63195.0,63194.0,0.1776368]
[1726920032273,0.13830468,63195.0,63194.0,0.1786368]
[1726920036544,0.13830468,63195.0,63194.0,0.4951218]
[1726920036764,0.13830468,63195.0,63194.0,0.5895218]
[1726920037192,0.016825,63195.0,63194.0,0.5895218]
[1726920038303,0.016825,63195.0,63194.0,0.5891578]
[1726920040628,0.016825,63195.0,63194.0,0.9056428]
[1726920047249,0.04747702,63200.0,63197.0,0.158234]
[1726920047468,0.16305367,63199.0,63197.0,0.158234]
[1726920047691,0.16305367,63199.0,63198.0,0.0184556]
[1726920048568,0.16305367,63199.0,63198.0,0.1766876]
[1726920048988,0.17405367,63199.0,63198.0,0.1766876]
[1726920049402,0.18505367,63199.0,63198.0,0.1766876]
[1726920051759,0.022,63199.0,63198.0,1.2225826]
[1726920056871,0.022,63199.0,63198.0,1.2242326]
[1726920057105,0.022825,63199.0,63198.0,1.2242326]
[1726920057595,0.011825,63199.0,63198.0,1.2242326]
[1726920057824,0.000825,63199.0,63198.0,1.2242326]
[1726920058153,0.011825,63199.0,63198.0,1.2252326]
[1726920058605,0.000825,63199.0,63198.0,1.2242326]
[1726920062260,0.000825,63199.0,63198.0,0.0201056]
[1726920062511,0.16586352,63199.0,63198.0,0.0201056]
[1726920062725,0.16586352,63199.0,63198.0,0.00165]
[1726920062972,0.16586352,63199.0,63198.0,0.17830874]
[1726920063449,0.17086352,63199.0,63198.0,0.17830874]
[1726920064199,0.12730468,63199.0,63198.0,0.17830874]
[1726920065160,0.12730468,63199.0,63198.0,0.17930874]
[1726920065161,0.13030468,63199.0,63198.0,0.17930874]
[1726920065401,0.13930468,63199.0,63198.0,0.18030874]
[1726920065645,0.12230468,63199.0,63198.0,0.17830874]
[1726920065849,0.13230468,63199.0,63198.0,0.17930874]
[1726920066083,0.020825,63199.0,63198.0,0.18030874]
[1726920066313,0.020825,63199.0,63198.0,0.17930874]
[1726920066314,0.13230468,63199.0,63198.0,0.17930874]
[1726920066813,0.14130468,63199.0,63198.0,0.18030874]
[1726920067345,0.13130468,63199.0,63198.0,0.17930874]
[1726920067602,0.009825,63199.0,63198.0,0.17930874]
[1726920067821,0.14030468,63199.0,63198.0,0.18030874]
[1726920068032,0.13130468,63199.0,63198.0,0.17830874]
[1726920068266,0.14130468,63199.0,63198.0,0.17930874]
[1726920068487,0.12230468,63199.0,63198.0,0.17830874]
[1726920068701,0.12230468,63199.0,63198.0,0.17930874]
[1726920068702,0.13230468,63199.0,63198.0,0.17930874]
[1726920068920,0.14230468,63199.0,63198.0,0.18030874]
[1726920069162,0.18977453,63199.0,63198.0,0.18030874]
[1726920069457,0.12230468,63199.0,63198.0,0.17830874]
[1726920069715,0.13430468,63199.0,63198.0,0.17930874]
[1726920070440,0.18177453,63199.0,63198.0,0.17930874]
[1726920070874,0.13430468,63199.0,63198.0,0.17930874]
[1726920071121,0.18177453,63199.0,63198.0,0.17930874]
[1726920071348,0.19277453,63199.0,63198.0,0.17930874]
[1726920071599,0.18177453,63199.0,63198.0,0.17930874]
[1726920071829,0.16977453,63199.0,63198.0,0.17830874]
[1726920072050,0.14330468,63199.0,63198.0,0.17930874]
[1726920072316,0.19077453,63199.0,63198.0,0.17930874]
[1726920072522,0.34900453,63199.0,63198.0,0.02107674]
[1726920072732,0.19077453,63199.0,63198.0,0.02107674]
[1726920074254,0.19077657,63199.0,63198.0,0.02107674]
[1726920075170,0.45333024,63199.0,63198.0,0.02107674]
[1726920075411,0.56408835,63199.0,63198.0,0.02107674]
[1726920075652,0.56408835,63199.0,63198.0,0.00265]
[1726920075653,0.51205939,63199.0,63198.0,0.00265]
[1726920076328,0.51155939,63199.0,63198.0,0.00265]
[1726920077502,0.35332939,63199.0,63198.0,0.00265]
[1726920078653,0.35332939,63199.0,63198.0,0.0210778]
[1726920081841,0.30585835,63199.0,63198.0,0.0210778]
[1726920082093,0.30585835,63199.0,63198.0,0.00265]
[1726920082094,0.35332919,63199.0,63198.0,0.00265]
[1726920082327,0.35332902,63199.0,63198.0,0.0210778]
[1726920082584,0.35332902,63199.0,63198.0,0.00265]
[1726920082810,0.30585835,63199.0,63198.0,0.0210778]
[1726920083034,0.35332863,63199.0,63198.0,0.00265]
[1726920083258,0.30585835,63199.0,63198.0,0.0210778]
[1726920083503,0.30585835,63199.0,63198.0,0.00265]
[1726920083746,0.30585835,63199.0,63198.0,0.0210778]
[1726920083990,0.35332853,63199.0,63198.0,0.00265]
[1726920084234,0.35332853,63199.0,63198.0,0.0210778]
[1726920084466,0.35332853,63199.0,63198.0,0.00265]
[1726920085681,0.30585835,63199.0,63198.0,0.00265]
[1726920086170,0.30585835,63199.0,63198.0,0.0210778]
[1726920088653,0.35332673,63199.0,63198.0,0.0210778]
[1726920088910,0.30585835,63199.0,63198.0,0.0210778]
[1726920089592,0.35332688,63199.0,63198.0,0.0210778]
[1726920089860,0.30585835,63199.0,63198.0,0.0210778]
[1726920090097,0.30585835,63199.0,63198.0,0.00265]
[1726920090323,0.35332634,63199.0,63198.0,0.0210738]
[1726920090610,0.30585835,63199.0,63198.0,0.160882]
[1726920090862,0.23184633,63199.0,63198.0,0.1793058]
[1726920091103,0.18437867,63199.0,63198.0,0.1793058]
[1726920093043,0.18437867,63199.0,63198.0,0.4957708]
[1726920103561,0.23184633,63199.0,63198.0,0.4957708]
[1726920105644,0.18437867,63199.0,63198.0,0.4957708]
[1726920105858,0.18437867,63199.0,63198.0,0.1793058]
[1726920106077,0.23188056,63199.0,63198.0,0.1793058]
[1726920106301,0.25558343,63199.0,63198.0,0.1793058]
[1726920106951,0.25563422,63199.0,63198.0,0.1793058]
[1726920107609,0.25563422,63199.0,63198.0,0.0210738]
[1726920107828,0.25563422,63199.0,63198.0,0.1793058]
[1726920108048,0.18437867,63199.0,63198.0,0.1793058]
[1726920108493,0.25563422,63199.0,63198.0,0.1793058]
[1726920109870,0.18437867,63199.0,63198.0,0.1793058]
[1726920110090,0.25563422,63199.0,63198.0,0.1793058]
[1726920110329,0.25563422,63199.0,63198.0,0.0210738]
[1726920110765,0.25563422,63199.0,63198.0,0.160882]
[1726920110992,0.25563422,63199.0,63198.0,0.1793116]
[1726920111206,0.18437867,63199.0,63198.0,0.1793116]
[1726920111664,0.25564476,63199.0,63198.0,0.1793116]
[1726920112545,0.18437867,63199.0,63198.0,0.1793116]
[1726920112757,0.25564649,63199.0,63198.0,0.1793116]
[1726920113211,0.18437867,63199.0,63198.0,0.1793116]
[1726920113430,0.23188885,63199.0,63198.0,0.1793116]
[1726920113650,0.18437867,63199.0,63198.0,0.1793116]
[1726920114304,0.2318891,63199.0,63198.0,0.1793116]
[1726920114744,0.18437867,63199.0,63198.0,0.1793116]
[1726920114960,0.2318891,63199.0,63198.0,0.1793116]
[1726920115630,0.25564649,63199.0,63198.0,0.1793116]
[1726920115887,0.18437867,63199.0,63198.0,0.1793116]
[1726920116112,0.25564649,63199.0,63198.0,0.1793116]
[1726920116989,0.18437867,63199.0,63198.0,0.1793116]
[1726920117419,0.23188918,63199.0,63198.0,0.1793116]
[1726920117846,0.18437867,63199.0,63198.0,0.1793116]
[1726920118274,0.23188858,63199.0,63198.0,0.0210796]
[1726920118493,0.25564649,63199.0,63198.0,0.0210796]
[1726920118713,0.73987887,63199.0,63198.0,0.0210796]
[1726920118934,0.87776403,63199.0,63198.0,0.0210796]
[1726920119156,0.87776403,63199.0,63198.0,0.00265]
[1726920119404,1.19422403,63199.0,63198.0,0.00265]
[1726920119628,0.87776403,63199.0,63198.0,0.00265]
[1726920120057,0.87776403,63199.0,63198.0,0.02109609]
[1726920120279,0.87776403,63199.0,63198.0,0.00265]
[1726920120495,0.71953403,63199.0,63198.0,0.00265]
[1726920120723,0.71953403,63199.0,63198.0,0.02109609]
[1726920120973,0.58164887,63199.0,63198.0,0.00265]
[1726920121185,0.30585835,63199.0,63198.0,0.02109609]
[1726920121401,0.58152668,63199.0,63198.0,0.00265]
[1726920121608,0.73975668,63199.0,63198.0,0.02109609]
[1726920121795,0.73975668,63199.0,63198.0,0.00265]
[1726920122040,0.73975668,63199.0,63198.0,0.02109609]
[1726920122257,0.73975668,63199.0,63198.0,0.00265]
[1726920122467,0.58152668,63199.0,63198.0,0.00265]
[1726920122687,0.58152668,63199.0,63198.0,0.02109609]
[1726920122900,0.73975668,63199.0,63198.0,0.02109609]
[1726920123569,1.05621668,63199.0,63198.0,0.02109609]
[1726920124005,1.44073903,63199.0,63198.0,0.00265]
[1726920124228,1.97337807,63199.0,63198.0,0.00265]
[1726920124450,1.85247572,63199.0,63198.0,0.00265]
[1726920124683,1.68939014,63199.0,63198.0,0.00265]
[1726920126293,2.07293014,63199.0,63198.0,0.00265]
[1726920129277,2.07263211,63199.0,63198.0,0.00265]
[1726920136341,2.19080243,63199.0,63198.0,0.00265]
[1726920137234,2.19162743,63199.0,63198.0,0.00265]
[1726920138147,2.50808743,63199.0,63198.0,0.00265]
[1726920138382,2.43160709,63199.0,63198.0,0.00265]
[1726920138833,2.42974415,63199.0,63198.0,0.00265]
[1726920139067,2.57214707,63199.0,63198.0,0.00265]
[1726920139538,2.42974415,63199.0,63198.0,0.00265]